Cogmind - Beta 15 @@@ ROGUE MODE // 2025.06.01 @ 23:56:47 Player: Btuck Result: Self-destructed Performance ------------- Evolutions (5) 2500 Regions Visited (13) 2600 Robots Destroyed (16) 80 Value Destroyed (315) 315 Prototype IDs (11) 220 Alien Tech Used (0) 0 Bonus (300) 300 TOTAL SCORE: 6015 Bonus ------- Met Data Miner 300 Cogmind --------- Core Integrity 853/1000 Matter 180/300 Energy 150/150 System Corruption 0% Temperature Cool (0) Movement Hovering (120) Ox1 Location -5/Factory Parts ------- > --- POWER (1) -------- Micro Fission Core > --- PROPULSION (4) --- Antigrav System > --- UTILITY (10) ----- Advanced Targeting Computer Improved Kinecellerator Hardened Medium Armor Plating > --- WEAPON (2) ------- (None) > --- INVENTORY (5) ---- Enhanced Optical Array Improved Datajack Peak State ------------ > --- POWER ------------ Fission Core > --- PROPULSION ------- Improved Cesium-ion Thruster Improved Cesium-ion Thruster Improved Cesium-ion Thruster Cooled Cesium-ion Thruster > --- UTILITY ---------- Machine Analyzer Advanced Sensor Array Advanced Signal Interpreter Advanced Melee Analysis Suite Advanced Melee Analysis Suite Microactuators Advanced ECM Suite Improved Power Shielding > --- WEAPON ----------- Heavy Flail > --- INVENTORY -------- Angular Momentum Engine Makeshift Flight Unit Improved Hacking Suite Improved Proton Missile Launcher Improved Datajack [Rating: 65] Favorites ----------- Power Ion Engine Engine Ion Engine Power Core Fission Core Propulsion Improved Cesium-ion Thruster Treads Light Treads Hover Unit Antigrav System Flight Unit Improved Cesium-ion Thruster Utility Seismic Detector Device Seismic Detector Storage Huge Storage Unit Processor Signal Interpreter Hackware Improved Hacking Suite Protection Improved Utility Shielding Weapon Assault Rifle Ballistic Gun Assault Rifle Launcher Improved Proton Missile Launcher Special Weapon Remote Datajack Impact Weapon Heavy Flail Special Melee Weapon Improved Datajack Build | -11 -10 -9 -8 -7 -7 -7 -7 -6 -6 -6 -6 -6 -5 ------- Run | Yrd Mat Mat Mat Fac Low Low Dat Pro Fac Ext Cet Arc Fac Slots Evolved 10 | . . 2 2 2 . . . . 2 . . . 2 Power . | . . . . . . . . . . . . . . Propulsion 2 | . . . 2 . . . . . . . . . . Utility 8 | . . 2 . 2 . . . . 2 . . . 2 Weapon . | . . . . . . . . . . . . . . Parts Attached 46 | 7 2 4 7 2 1 1 . 3 11 . 2 1 5 Power 5 | 1 . . 1 . . . . 1 . . 1 . 1 Engine 3 | 1 . . 1 . . . . . . . 1 . . Core 2 | . . . . . . . . 1 . . . . 1 Reactor . | . . . . . . . . . . . . . . Propulsion 14 | 2 . 2 3 . 1 1 . 1 2 . 1 . 1 Treads 2 | 2 . . . . . . . . . . . . . Leg . | . . . . . . . . . . . . . . Wheel . | . . . . . . . . . . . . . . Hover 1 | . . . . . . . . . . . . . 1 Flight 11 | . . 2 3 . 1 1 . 1 2 . 1 . . Utility 20 | 2 1 2 1 1 . . . 1 9 . . . 3 Device 8 | 1 . 1 1 1 . . . . 3 . . . 1 Storage 2 | 1 1 . . . . . . . . . . . . Processor 6 | . . 1 . . . . . 1 3 . . . 1 Hackware 1 | . . . . . . . . . 1 . . . . Protection 3 | . . . . . . . . . 2 . . . 1 Artifact . | . . . . . . . . . . . . . . Weapon 7 | 2 1 . 2 1 . . . . . . . 1 . Energy Gun . | . . . . . . . . . . . . . . Energy Cannon . | . . . . . . . . . . . . . . Ballistic Gun 2 | 2 . . . . . . . . . . . . . Ballistic Cannon . | . . . . . . . . . . . . . . Launcher 1 | . . . . . . . . . . . . 1 . Special Weapon 2 | . 1 . . 1 . . . . . . . . . Impact Weapon 1 | . . . 1 . . . . . . . . . . Slashing Weapon . | . . . . . . . . . . . . . . Piercing Weapon . | . . . . . . . . . . . . . . Special Melee Weapon 1 | . . . 1 . . . . . . . . . . Unidentified Prototypes 1 | . . . 1 . . . . . . . . . . Parts Lost 20 | . . . 1 . . 3 . . 3 1 5 7 . Power 2 | . . . . . . . . . . 1 . 1 . Propulsion 8 | . . . . . . 2 . . 1 . 3 2 . Utility 6 | . . . . . . 1 . . 1 . 1 3 . Weapon 4 | . . . 1 . . . . . 1 . 1 1 . Highest Loss Streak 7 | . . . 1 . . 2 . . 3 1 6 7 . To Critical Strikes . | . . . . . . . . . . . . . . Average Backups 5 | . 7 5 3 4 5 4 4 4 4 5 3 2 2 Power . | . 1 1 . . . . . . 1 1 . . . Propulsion 2 | . 3 2 1 3 3 2 2 1 1 1 . . . Utility 1 | . 2 1 . . 1 1 1 1 . 1 1 1 1 Weapon . | . . . . . . . . . . 1 1 . . Tool/Special . | . . . . . . . . . . . . . . Unused Backups 2 | . . . . . . . . . 1 . . . 1 Power . | . . . . . . . . . . . . . . Propulsion . | . . . . . . . . . . . . . . Utility 2 | . . . . . . . . . 1 . . . 1 Weapon . | . . . . . . . . . . . . . . Tool/Special . | . . . . . . . . . . . . . . Average Slot Usage (%) 84 | . 100 74 90 81 84 76 69 81 89 91 77 52 15 Engine 7 | . 14 11 9 7 7 7 7 . . . 6 3 . Core 1 | . . . . . . . . 6 6 5 . . 2 Treads 10 | . 28 1 . . . . . . . . . . . Flight 13 | . . 18 34 30 30 28 23 29 25 26 17 10 . Device 15 | . 14 19 20 23 23 17 15 15 19 20 15 10 3 Storage 5 | . 14 2 . . . . . . . . . . . Processor 7 | . . 8 9 7 7 7 7 13 19 20 20 17 3 Hackware 1 | . . . . . . . . . 3 6 6 5 . Protection 1 | . . . . . . . . . 4 6 6 4 2 Ballistic Gun 9 | . 25 2 . . . . . . . . . . . Special Weapon 3 | . 2 11 9 4 7 7 7 7 2 . . . . Impact Weapon 2 | . . . 3 7 7 7 7 7 6 6 3 . . Peak Build Rating 65 | 7 8 12 21 28 29 30 26 40 65 65 64 46 24 Average Rating 24 | 4 7 9 17 25 27 28 26 38 60 64 52 35 14 On Entrance 25 | . 7 8 9 20 27 29 26 26 40 65 60 46 . Naked Turns 44 | . . . . . . . . . . . . 7 37 Heaviest Build 89 | 14 89 10 11 12 12 12 11 18 25 21 24 20 18 Greatest Support 40 | 40 40 8 18 18 22 24 16 22 24 24 26 12 11 Greatest Overweight (x) 2 | . 2 1 . . 1 . . . 1 . 1 1 1 Average Overweight (x) . | . 1 . . . . . . . . . . . . Largest Inventory Capacity 25 | 8 25 25 5 5 5 5 5 5 5 5 5 5 5 Average Capacity 11 | 6 22 6 5 5 5 5 5 5 5 5 5 5 5 Most Carried 12 | 1 10 12 5 5 5 5 4 5 5 5 4 3 2 Average Carried 5 | . 7 4 3 4 5 4 4 4 4 5 3 2 2 Final Capacity 25 | 8 25 5 5 5 5 5 5 5 5 5 5 5 5 Final Carried 10 | 1 10 4 4 5 5 4 4 5 5 5 3 2 2 Class Distribution -------------------- 56% | Mutant 23% | Scout 11% | Ninja 5% | Sprinter Dominant Class ---------------- Mutant | -10/Materials Sprinter | -9/Materials Scout | -8/Materials Scout | -7/Factory Scout | -7/Lower Caves Scout | -7/Lower Caves Scout | -7/Data Miner Scout | -6/Proximity Caves Ninja | -6/Factory Ninja | -6/Extension Mutant | -6/Cetus Mutant | -6/Archives Mutant | -5/Factory Resources | -11 -10 -9 -8 -7 -7 -7 -7 -6 -6 -6 -6 -6 -5 ----------- Run | Yrd Mat Mat Mat Fac Low Low Dat Pro Fac Ext Cet Arc Fac Matter Collected 680 | 314 171 . 1 . 96 . . 98 . . . . . Remotely . | . . . . . . . . . . . . . . Salvage Created 464 | 150 313 . 1 . . . . . . . . . . Parts 36 | 14 22 . . . . . . . . . . . . Haulers Intercepted 1 | . 1 . . . . . . . . . . . . Recyclers Shooed . | . . . . . . . . . . . . . . Parts Field Recycled . | . . . . . . . . . . . . . . Retrieved Matter . | . . . . . . . . . . . . . . Parts Self-Destructed . | . . . . . . . . . . . . . . Prevented 2 | . . . . . . 2 . . . . . . . Kills | -11 -10 -9 -8 -7 -7 -7 -7 -6 -6 -6 -6 -6 -5 ------- Run | Yrd Mat Mat Mat Fac Low Low Dat Pro Fac Ext Cet Arc Fac Combat Hostiles Destroyed 7 | . 7 . . . . . . . . . . . . Guns 7 | . 7 . . . . . . . . . . . . Classes Destroyed 6 | 3 2 . 1 . . . . . . . . . . Worker 3 | 2 1 . . . . . . . . . . . . Tunneler 3 | 3 . . . . . . . . . . . . . Hauler 1 | . 1 . . . . . . . . . . . . Recycler 1 | 1 . . . . . . . . . . . . . Watcher 1 | . . . 1 . . . . . . . . . . Grunt 7 | . 7 . . . . . . . . . . . . Best Kill Streak 3 | 3 3 . 1 . . . . . . . . . . Combat Bots Only 3 | . 3 . . . . . . . . . . . . Max Kills in Single Turn 1 | 1 1 . 1 . . . . . . . . . . Gunslinging . | . . . . . . . . . . . . . . Exploded . | . . . . . . . . . . . . . . Melee . | . . . . . . . . . . . . . . Uniques/NPCs Destroyed . | . . . . . . . . . . . . . . Combat | -11 -10 -9 -8 -7 -7 -7 -7 -6 -6 -6 -6 -6 -5 -------- Run | Yrd Mat Mat Mat Fac Low Low Dat Pro Fac Ext Cet Arc Fac Hostile Shots Fired 381 | . 52 3 8 18 4 49 . 10 66 58 31 43 39 Missed 177 | . 13 1 6 11 3 32 . 5 30 37 14 17 8 Hits 204 | . 39 2 2 7 1 17 . 5 36 21 17 26 31 Projectile 204 | . 39 2 2 7 1 17 . 5 36 21 17 26 31 AOE 2 | . . . 2 . . . . . . . . . . Critical Strikes 6 | . . . . . . . . . . . 4 2 . Actively Blocked 1 | . . . . . . . . . . . 1 . . Damage Taken 3156 | . 427 61 71 72 25 245 . 119 280 288 484 614 470 Core 1114 | . 66 19 21 27 25 57 . 74 83 108 157 330 147 Absorbed by Shields . | . . . . . . . . . . . . . . Redirected to Shielding 117 | . . . . . . . . . 9 31 35 42 . Core Remaining (%) 76 | 100 73 95 96 . . . . 73 . . . 20 . Volleys Fired 61 | 11 41 1 3 1 . 4 . . . . . . . Largest 2 | 2 2 1 1 1 . 1 . . . . . . . Hottest 100 | 40 100 100 100 5 . 5 . . . . . . . Shots Fired 111 | 22 80 1 3 1 . 4 . . . . . . . Gun 100 | 22 78 . . . . . . . . . . . . Cannon . | . . . . . . . . . . . . . . Launcher . | . . . . . . . . . . . . . . Special 11 | . 2 1 3 1 . 4 . . . . . . . Kinetic 100 | 22 78 . . . . . . . . . . . . Thermal 6 | . 2 1 3 . . . . . . . . . . Explosive . | . . . . . . . . . . . . . . Electromagnetic . | . . . . . . . . . . . . . . Robot Hit Streak 17 | 13 17 . 2 . . 3 . . . . . . . Robot Miss Streak 3 | 2 3 . . . . 1 . . . . . . . Penetration Max . | . . . . . . . . . . . . . . Secondary Targets 1 | . 1 . . . . . . . . . . . . Max Gunslinging Chain 1 | . 1 . . . . . . . . . . . . Shots Hit Robots 71 | 15 49 . 2 . . 3 . . 2 . . . . Core Hits 25 | 8 17 . . . . . . . . . . . . Critical Kills . | . . . . . . . . . . . . . . Critical Parts Destroyed . | . . . . . . . . . . . . . . Critical Strikes . | . . . . . . . . . . . . . . Melee Attacks 31 | . . . 1 1 . 1 . . 26 . 1 1 . Impact 30 | . . . 1 1 . 1 . . 26 . 1 . . Slashing . | . . . . . . . . . . . . . . Piercing . | . . . . . . . . . . . . . . Sneak Attacks . | . . . . . . . . . . . . . . Combat Hostiles . | . . . . . . . . . . . . . . Follow-up Attacks . | . . . . . . . . . . . . . . Damage Inflicted 904 | 164 562 . 105 . . . . . 73 . . . . Guns 717 | 164 553 . . . . . . . . . . . . Cannons . | . . . . . . . . . . . . . . Explosions . | . . . . . . . . . . . . . . Melee 154 | . . . 81 . . . . . 73 . . . . Ramming 9 | . 9 . . . . . . . . . . . . Kinetic 717 | 164 553 . . . . . . . . . . . . Thermal 24 | . . . 24 . . . . . . . . . . Explosive . | . . . . . . . . . . . . . . Electromagnetic . | . . . . . . . . . . . . . . Impact 154 | . . . 81 . . . . . 73 . . . . Slashing . | . . . . . . . . . . . . . . Piercing . | . . . . . . . . . . . . . . Highest Corruption . | . . . . . . . . . . . . . . Average Corruption . | . . . . . . . . . . . . . . Corruption Purged . | . . . . . . . . . . . . . . Corruption Blocked . | . . . . . . . . . . . . . . Overload Shots . | . . . . . . . . . . . . . . Overflow Damage 59 | . . . 59 . . . . . . . . . . Projectiles . | . . . . . . . . . . . . . . Explosions . | . . . . . . . . . . . . . . Melee 59 | . . . 59 . . . . . . . . . . Knockbacks 1 | . . . 1 . . . . . . . . . . Impact 1 | . . . 1 . . . . . . . . . . Kinetic . | . . . . . . . . . . . . . . Secondary . | . . . . . . . . . . . . . . Self-Inflicted Damage . | . . . . . . . . . . . . . . Shots . | . . . . . . . . . . . . . . Rammed 2 | . 2 . . . . . . . . . . . . Targets Rammed 3 | . 3 . . . . . . . . . . . . Kicked . | . . . . . . . . . . . . . . Crushed 1 | . 1 . . . . . . . . . . . . Highest Temperature 40 | . 40 20 28 4 . . . 6 2 13 . . . Average Temperature 11 | . 10 11 15 4 . . . 3 2 8 . . . Received Heat Transfer 579 | . 234 12 . 18 . 33 . 18 69 42 54 99 . Siege Activations . | . . . . . . . . . . . . . . Martial Activations . | . . . . . . . . . . . . . . Shielding Activations . | . . . . . . . . . . . . . . Robots Disrupted . | . . . . . . . . . . . . . . Combat Hostiles . | . . . . . . . . . . . . . . Robots Corrupted 1 | . . . 1 . . . . . . . . . . Combat Hostiles . | . . . . . . . . . . . . . . Parts Fried . | . . . . . . . . . . . . . . Impact Corruptions 2 | . . . 2 . . . . . . . . . . Robots Melted . | . . . . . . . . . . . . . . Combat Hostiles . | . . . . . . . . . . . . . . Parts Melted . | . . . . . . . . . . . . . . Heat Transferred 50 | . . . 50 . . . . . . . . . . Parts Sabotaged . | . . . . . . . . . . . . . . Parts Stolen . | . . . . . . . . . . . . . . Parts Stripped . | . . . . . . . . . . . . . . Power Chain Reactions . | . . . . . . . . . . . . . . Alert | -11 -10 -9 -8 -7 -7 -7 -7 -6 -6 -6 -6 -6 -5 ------- Run | Yrd Mat Mat Mat Fac Low Low Dat Pro Fac Ext Cet Arc Fac Maximum Alert Level . | . . . . . . . . . . . . . . Low Security (%) 100 | 100 100 100 100 100 . . . . 100 100 100 100 100 Level 1 . | . . . . . . . . . . . . . . Level 2 . | . . . . . . . . . . . . . . Level 3 . | . . . . . . . . . . . . . . Level 4 . | . . . . . . . . . . . . . . Level 5 . | . . . . . . . . . . . . . . High Security . | . . . . . . . . . . . . . . Max Security . | . . . . . . . . . . . . . . Peak Influence 168 | 10 50 25 15 105 . . . . 168 81 29 . 15 Initial 126 | . . . 1 6 . . . . 126 81 28 . . Average 26 | 1 9 9 1 18 . . . . 107 71 7 . 1 Influence Increases 1065 | 30 187 35 24 121 60 120 . 240 232 . 1 . 15 Destroy 0b10 Robot/C 140 | . 140 . . . . . . . . . . . . Destroy 0b10 Robot/NC 45 | 30 10 . 5 . . . . . . . . . . Destroy Leader 24 | . 22 . 2 . . . . . . . . . . Successful Hack 8 | . . 5 . . . . . . 3 . . . . Disable Machine 30 | . 15 15 . . . . . . . . . . . Destroy Structure 23 | . . . 2 1 . . . . 19 . 1 . . Partial Spotted 60 | . . 15 15 15 . . . . 15 . . . . Lose Combat Pursuer 735 | . . . . 105 60 120 . 240 195 . . . 15 Influence Decreases 1050 | 30 187 30 14 31 70 119 96 40 264 117 52 . . Entered New Map 352 | . . . 4 9 40 19 96 . 74 87 23 . . Time Decay 609 | 30 187 30 10 22 30 70 . 40 160 20 10 . . Lost Part 89 | . . . . . . 30 . . 30 10 19 . . Squads Dispatched 9 | . 2 1 1 . . . . 1 3 1 . . . Investigation 1 | . 1 . . . . . . . . . . . . Extermination 2 | . . . . . . . . . 2 . . . . Reinforcement 5 | . 1 1 1 . . . . . 1 1 . . . Assault 1 | . . . . . . . . 1 . . . . . Garrison . | . . . . . . . . . . . . . . Intercept . | . . . . . . . . . . . . . . Searches Triggered . | . . . . . . . . . . . . . . Construction Impeded . | . . . . . . . . . . . . . . Haulers Reinforced . | . . . . . . . . . . . . . . Active Scanning Responses . | . . . . . . . . . . . . . . Cargo Convoy Interrupts . | . . . . . . . . . . . . . . Stealth | -11 -10 -9 -8 -7 -7 -7 -7 -6 -6 -6 -6 -6 -5 --------- Run | Yrd Mat Mat Mat Fac Low Low Dat Pro Fac Ext Cet Arc Fac Distress Signals 7 | . . 1 3 . . . . . 2 . 1 . . Communications Jammed . | . . . . . . . . . . . . . . Distress Signals . | . . . . . . . . . . . . . . Times Spotted 107 | . 11 8 7 14 5 12 . 16 13 6 5 4 6 Peak Tracking Total 13 | . 3 7 8 12 5 5 . 13 7 5 5 4 5 Tactical Retreats 19 | . . . . 1 1 4 . 5 6 . 1 . 1 Traps | -11 -10 -9 -8 -7 -7 -7 -7 -6 -6 -6 -6 -6 -5 ------- Run | Yrd Mat Mat Mat Fac Low Low Dat Pro Fac Ext Cet Arc Fac Traps Triggered 2 | . 1 1 . . . . . . . . . . . Indirectly . | . . . . . . . . . . . . . . Trap Hack Attempts . | . . . . . . . . . . . . . . Triggered . | . . . . . . . . . . . . . . Disarmed . | . . . . . . . . . . . . . . Reprogrammed . | . . . . . . . . . . . . . . Reused . | . . . . . . . . . . . . . . Traps Extracted . | . . . . . . . . . . . . . . Installed . | . . . . . . . . . . . . . . Triggered . | . . . . . . . . . . . . . . Machines | -11 -10 -9 -8 -7 -7 -7 -7 -6 -6 -6 -6 -6 -5 ---------- Run | Yrd Mat Mat Mat Fac Low Low Dat Pro Fac Ext Cet Arc Fac Machines Disabled 2 | . 1 1 . . . . . . . . . . . Max in Single Turn 1 | . 1 1 . . . . . . . . . . . Machines Repaired . | . . . . . . . . . . . . . . Machines Dismantled . | . . . . . . . . . . . . . . Machines Sabotaged . | . . . . . . . . . . . . . . Overloaded Fab Kills . | . . . . . . . . . . . . . . Hacking | -11 -10 -9 -8 -7 -7 -7 -7 -6 -6 -6 -6 -6 -5 --------- Run | Yrd Mat Mat Mat Fac Low Low Dat Pro Fac Ext Cet Arc Fac Machines Accessed 9 | . . 2 . 1 . . 4 . 2 . . . . Terminals 5 | . . 2 . 1 . . . . 2 . . . . Fabricators . | . . . . . . . . . . . . . . Repair Stations . | . . . . . . . . . . . . . . Recycling Units . | . . . . . . . . . . . . . . Scanalyzers . | . . . . . . . . . . . . . . Garrison Access . | . . . . . . . . . . . . . . Total Hacks 40 | . . 3 . 2 . . 32 . 3 . . . . Successful 37 | . . 2 . 1 . . 32 . 2 . . . . Failed 3 | . . 1 . 1 . . . . 1 . . . . Catastrophic . | . . . . . . . . . . . . . . Database Lockouts . | . . . . . . . . . . . . . . Manual 2 | . . 1 . . . . . . 1 . . . . Terminals 8 | . . 3 . 2 . . . . 3 . . . . Fabricators . | . . . . . . . . . . . . . . Repair Stations . | . . . . . . . . . . . . . . Recycling Units . | . . . . . . . . . . . . . . Scanalyzers . | . . . . . . . . . . . . . . Garrison Access . | . . . . . . . . . . . . . . Terminal Hacks 37 | . . 2 . 1 . . 32 . 2 . . . . Record 12 | . . 1 . . . . 11 . . . . . . Part Schematic 13 | . . . . . . . 13 . . . . . . Robot Schematic 5 | . . . . . . . 5 . . . . . . Prototype ID Bank 3 | . . . . . . . 3 . . . . . . Open DSF 2 | . . . . 1 . . . . 1 . . . . Hauler Manifests 1 | . . 1 . . . . . . . . . . . Zone Layout 1 | . . . . . . . . . 1 . . . . Fabricator Hacks . | . . . . . . . . . . . . . . Repair Station Hacks . | . . . . . . . . . . . . . . Recycling Unit Hacks . | . . . . . . . . . . . . . . Scanalyzer . | . . . . . . . . . . . . . . Garrison Access Hacks . | . . . . . . . . . . . . . . Unauthorized Hacks . | . . . . . . . . . . . . . . Terminals . | . . . . . . . . . . . . . . Fabricators . | . . . . . . . . . . . . . . Repair Stations . | . . . . . . . . . . . . . . Recycling Units . | . . . . . . . . . . . . . . Scanalyzers . | . . . . . . . . . . . . . . Garrison Access . | . . . . . . . . . . . . . . Data Cores Recovered . | . . . . . . . . . . . . . . Used . | . . . . . . . . . . . . . . Hacking Detections 3 | . . 1 . 1 . . . . 1 . . . . Full Trace Events . | . . . . . . . . . . . . . . Feedback Events . | . . . . . . . . . . . . . . Feedback Blocked . | . . . . . . . . . . . . . . Robot Schematics Acquired 5 | . . . . . . . 5 . . . . . . Robots Built . | . . . . . . . . . . . . . . Authchips . | . . . . . . . . . . . . . . Time . | . . . . . . . . . . . . . . Total Robot Build Rating . | . . . . . . . . . . . . . . Part Schematics Acquired 13 | . . . . . . . 13 . . . . . . Parts Built . | . . . . . . . . . . . . . . Authchips . | . . . . . . . . . . . . . . Time . | . . . . . . . . . . . . . . Total Part Build Rating . | . . . . . . . . . . . . . . Parts Repaired . | . . . . . . . . . . . . . . Time . | . . . . . . . . . . . . . . Parts Recycled . | . . . . . . . . . . . . . . Recycled Matter . | . . . . . . . . . . . . . . Retrieved Matter . | . . . . . . . . . . . . . . Retrieved Components . | . . . . . . . . . . . . . . Parts Scanalyzed . | . . . . . . . . . . . . . . Part Schematics Acquired . | . . . . . . . . . . . . . . Parts Damaged . | . . . . . . . . . . . . . . Bothacking | -11 -10 -9 -8 -7 -7 -7 -7 -6 -6 -6 -6 -6 -5 ------------ Run | Yrd Mat Mat Mat Fac Low Low Dat Pro Fac Ext Cet Arc Fac Used RIF Installer . | . . . . . . . . . . . . . . Robots Hacked . | . . . . . . . . . . . . . . Non-combat . | . . . . . . . . . . . . . . Combat . | . . . . . . . . . . . . . . Robot Hacks Applied . | . . . . . . . . . . . . . . Relay Couplers Released . | . . . . . . . . . . . . . . Fabnet Peak Effective % . | . . . . . . . . . . . . . . Robots Rewired . | . . . . . . . . . . . . . . Allies Hacked . | . . . . . . . . . . . . . . Hacks Repelled . | . . . . . . . . . . . . . . Allies | -11 -10 -9 -8 -7 -7 -7 -7 -6 -6 -6 -6 -6 -5 -------- Run | Yrd Mat Mat Mat Fac Low Low Dat Pro Fac Ext Cet Arc Fac Total Allies . | . . . . . . . . . . . . . . Largest Group . | . . . . . . . . . . . . . . Highest-Rated Group . | . . . . . . . . . . . . . . Highest-Rated Ally . | . . . . . . . . . . . . . . Total Orders . | . . . . . . . . . . . . . . Ally Attacks . | . . . . . . . . . . . . . . Total Damage . | . . . . . . . . . . . . . . Kills . | . . . . . . . . . . . . . . Allies Corrupted . | . . . . . . . . . . . . . . Allies Melted . | . . . . . . . . . . . . . . Intel | -11 -10 -9 -8 -7 -7 -7 -7 -6 -6 -6 -6 -6 -5 ------- Run | Yrd Mat Mat Mat Fac Low Low Dat Pro Fac Ext Cet Arc Fac Active Infowar (turns) 2022 | 19 883 73 65 78 67 141 34 149 336 50 77 50 . Sensors 1010 | . . 68 65 78 67 141 34 149 336 50 22 . . Terrain 550 | . . . 1 53 67 141 34 149 105 . . . . Seismic 1083 | 19 883 73 65 43 . . . . . . . . . Machine Analysis 365 | . . . . . . . . . 188 50 77 50 . ECM 51 | . . . . . . . . . 11 11 29 . . Robot Analysis Total . | . . . . . . . . . . . . . . Derelict Logs Recovered 5 | . . . . . 1 2 . 2 . . . . . Drone Launches . | . . . . . . . . . . . . . . Drone Recoveries . | . . . . . . . . . . . . . . Exploration | -11 -10 -9 -8 -7 -7 -7 -7 -6 -6 -6 -6 -6 -5 ------------- Run | Yrd Mat Mat Mat Fac Low Low Dat Pro Fac Ext Cet Arc Fac Turns Passed 2319 | 173 883 73 65 78 67 141 34 149 336 50 77 57 136 Spaces Moved 3614 | 84 271 177 140 245 196 417 116 537 902 191 85 70 183 Core 103 | 2 . . . . . . . . . . . 29 72 Treads 353 | 82 271 . . . . . . . . . . . . Legs . | . . . . . . . . . . . . . . Wheels . | . . . . . . . . . . . . . . Hover 111 | . . . . . . . . . . . . . 111 Flight 3047 | . . 177 140 245 196 417 116 537 902 191 85 41 . Fastest Speed 26 | 50 160 32 26 26 29 29 29 26 26 26 26 32 50 Average Speed 53 | 157 272 32 26 27 31 30 29 26 28 26 73 62 70 Slowest Speed 320 | 160 320 112 26 29 112 35 29 29 99 26 104 104 120 Overloaded Moves . | . . . . . . . . . . . . . . Propulsion Burnouts . | . . . . . . . . . . . . . . Robots Hopped 12 | . . 1 . . . 6 . . 2 1 2 . . Potential Cave-ins 3 | . . . . . . . . . 3 . . . . Cave-ins Triggered . | . . . . . . . . . . . . . . Exploration Rate (%) 40 | 6 32 28 19 13 41 70 75 83 34 41 49 66 5 Regions Visited 13 Branch Regions 7 Pre-discovered Areas 3 | . . . . . . 1 1 1 . . . . . Known Exits Taken 10 | . . 1 1 1 1 1 1 1 1 1 1 . . Unknown Exits Taken 3 | 1 1 . . . . . . . . . . 1 . Scrap Searched 5 | . . . . . 2 1 . 2 . . . . . Spaces Dug 27 | . . . 2 1 . 1 . . 22 . 1 . . Terrain Destroyed 27 | . . . 2 1 . 1 . . 22 . 1 . . Melee 25 | . . . . 1 . 1 . . 22 . 1 . . Projectile 2 | . . . 2 . . . . . . . . . . AOE . | . . . . . . . . . . . . . . Terrain Rammed . | . . . . . . . . . . . . . . Walls Destroyed . | . . . . . . . . . . . . . . Machines Disabled . | . . . . . . . . . . . . . . Actions | -11 -10 -9 -8 -7 -7 -7 -7 -6 -6 -6 -6 -6 -5 --------- Run | Yrd Mat Mat Mat Fac Low Low Dat Pro Fac Ext Cet Arc Fac Total 3820 | 102 333 191 157 252 201 419 115 544 951 189 96 82 188 Wait 41 | . 9 . . 2 2 3 . 4 . . 11 10 . Move 3577 | 83 270 174 139 244 195 404 115 536 897 188 80 69 183 Hop 12 | . . 1 . . . 6 . . 2 1 2 . . Pick Up 22 | 1 8 3 3 1 . . . 1 5 . . . . Fast Attach 29 | 7 . . 3 2 2 . . 1 9 . . . 5 Attach 14 | . . 4 3 . . 1 . 1 2 . 2 1 . Detach 8 | . . 2 2 . . . . . 4 . . . . Swap 5 | . 2 . 1 . . . . 1 . . . 1 . Drop 17 | . . 6 2 1 2 . . . 6 . . . . Fire 61 | 11 41 1 3 1 . 4 . . . . . . . Melee 31 | . . . 1 1 . 1 . . 26 . 1 1 . Ram . | . . . . . . . . . . . . . . Kick . | . . . . . . . . . . . . . . Crush 3 | . 3 . . . . . . . . . . . . Escape Stasis . | . . . . . . . . . . . . . . Rewire . | . . . . . . . . . . . . . . Trap . | . . . . . . . . . . . . . . Miscellaneous . | . . . . . . . . . . . . . . Route ------- -11/Scrapyard -10/Materials -9/Materials (discovered 2 exits: *Mat / *Min) -8/Materials -7/Factory -7/Lower Caves -7/Lower Caves (discovered 2 exits: *Fac / *Dat) -7/Data Miner -6/Proximity Caves -6/Factory -6/Extension (discovered 2 exits: *Fac / *Cet) -6/Cetus -6/Archives -5/Factory History --------- Turn | Location | Event 15 | -11/Scrapyard | Discovered new exit (range 15) 174 | -11/Scrapyard | Entered Materials 309 | -10/Materials | Build established: Mutant 401 | -10/Materials | Discovered new exit (range 6) 1057 | -10/Materials | Entered another Materials area 1057 | -9/Materials | Evolved 2 slots: Utility x2 1084 | -9/Materials | Discovered new exit (range 16) 1088 | -9/Materials | Identified exit to Mines 1124 | -9/Materials | Discovered new exit (range 16) 1129 | -9/Materials | Identified exit to Materials 1130 | -9/Materials | Entered another Materials area 1130 | -8/Materials | Evolved 2 slots: Propulsion x2 1188 | -8/Materials | Discovered new exit (range 13) 1195 | -8/Materials | Identified exit to Factory 1195 | -8/Materials | Entered Factory 1195 | -7/Factory | Evolved 2 slots: Utility x2 1271 | -7/Factory | Discovered new exit (range 5) 1272 | -7/Factory | Identified exit to Lower Caves 1273 | -7/Factory | Entered Lower Caves 1291 | -7/Lower Caves | Spotted B-75 Beast 1310 | -7/Lower Caves | Identified exit to Lower Caves 1339 | -7/Lower Caves | Encountered a Warlord checkpoint 1340 | -7/Lower Caves | Entered another Lower Caves area 1349 | -7/Lower Caves | Attracted the attention of an 0b10 checkpoint 1397 | -7/Lower Caves | Discovered new exit (range 12) 1400 | -7/Lower Caves | Identified exit to Factory 1435 | -7/Lower Caves | Learned location of Zion (-6) 1453 | -7/Lower Caves | Learned Factory stockpile data 1456 | -7/Lower Caves | Spotted B-75 Beast 1472 | -7/Lower Caves | Build established: Scout 1478 | -7/Lower Caves | Discovered new exit (range 12) 1481 | -7/Lower Caves | Identified exit to Data Miner 1481 | -7/Lower Caves | Entered Data Miner 1481 | -7/Data Miner | Discovered new exit (range 6) 1487 | -7/Data Miner | Met Data Miner 1492 | -7/Data Miner | Learned location of Section 7 (-3) 1492 | -7/Data Miner | Acquired the access code to Warlord's prototype stash 1498 | -7/Data Miner | Received God Mode back door access code from Data Miner 1514 | -7/Data Miner | Identified exit to Proximity Caves 1515 | -7/Data Miner | Entered Proximity Caves 1516 | -6/Proximity Caves | Learned 4 Factory zone layouts 1529 | -6/Proximity Caves | Spotted B-75 Beast 1597 | -6/Proximity Caves | Attracted the attention of an 0b10 outpost 1663 | -6/Proximity Caves | Discovered exit to Factory (range 7) 1664 | -6/Proximity Caves | Entered Factory 1664 | -6/Factory | Evolved 2 slots: Utility x2 1665 | -6/Factory | Identified exit to Extension 1803 | -6/Factory | Lost 3 parts (1n1u1w) 2000 | -6/Factory | Entered Extension 2020 | -6/Extension | Spotted B-75 Beast 2022 | -6/Extension | Spotted B-75 Beast 2046 | -6/Extension | Discovered new exit (range 16) 2047 | -6/Extension | Discovered new exit (range 14) 2050 | -6/Extension | Identified exit to Cetus 2050 | -6/Extension | Entered Cetus 2066 | -6/Cetus | Spotted Cetus Guard 2066 | -6/Cetus | Spotted Cetus Guard 2067 | -6/Cetus | Spotted Cetus Guard 2071 | -6/Cetus | Spotted Cetus Guard 2109 | -6/Cetus | Discovered new exit (range 16) 2122 | -6/Cetus | Lost 6 parts (1p3n1u1w) 2123 | -6/Cetus | Identified exit to Archives 2127 | -6/Cetus | Entered Archives 2173 | -6/Archives | Core integrity fell below 50% 2177 | -6/Archives | Released all parts (4) 2178 | -6/Archives | Discovered new exit (range 13) 2184 | -6/Archives | Entered Factory 2184 | -5/Factory | Evolved 2 slots: Utility x2 2205 | -5/Factory | Lost 7 parts (1p2n3u1w) 2320 | -5/Factory | Self-destructed Last Messages --------------- 02177_ Archive Hub disabled. 02177_ Released Adv. Signal Interpreter. 02177_ Released Adv. Melee Analysis Suite. 02177_ Released Machine Analyzer. 02177_ Released Imp. Hacking Suite. 02177_ Penetrated by Slug. 02178_ EXIT=FOUND 02179_ Penetrated by Slug. PARAMETERS=UTILITY+2 LOCATION=UNKNOWN GOAL=ESCAPE 02195_ Connecting with Terminal... 02195_ Current location identified: Factory 02221_ Acquired Antigrav System. 02225_ Acquired Imp. Kinecellerator. 02231_ Acquired Adv. Targeting Computer. 02265_ Acquired Mic. Fission Core. 02267_ Acquired Hrd. Medium Armor Plating. 02295_ ALERT: All DSF locations entering lockdown mode. Map ----- +----------------------------------------------------+ | ?????????????????????????? + """""""" | | ?????????????????????????? # | | ?????????????????????????????###### # """""""" | | ??????????????????????????????????# # | | ??????????????????????????????????# # """""""" | | ??????????????????????????????????# # | | ??????????????????????????????????# ####+##### | | ??????????????????????????????????# #??# #???? | | ??????????????????????????????????# #??# #???? | | ???????????????????????############ #??# #???? | | ??????????????????????? # #### ##### | | ???????????????????????"""" """# # | | ???????????????????????"""" Y"# # | | ???????????????????????"""" """# # | | ?????????????????????# """" + # | | ?????????????????????# # # | | ?????????????????????# """" """" # ### | | ???????????????????????"""" """" # #?? | | ??????# ????????????? """" """" # #?? | | ??????+ ???????????# """" """" # #?? | | ??????# ?????????# # #?? | | ??????# #????????#] # #?? | | ??????# #????????#########+#### #?? | | ??????# #????????????????# #??##############?? | | ??????# ################## ###???????????????? | | ??????# @ #???????????????? | | ??????# #???????????????? | | ??????# #???????????????? | | ??????# s #???????????????? | | ??????# s sss #???????????????? | | ??????# ###/##############+#+#####???????????? | | ####### # ## #???????????? | | # """"""" ## #???????????? | | # """"""" ## #???????????? | | # """"""" !?# #???????????? | | # """"""" ## #???????????? | | " ## """" """" #???????????? | | ####+##+#+#####+#######?# """" """" #???????????? | | ?#! #?????# """" """" #???????????? | | ?# """ """ """ #?????# """" """" #???????????? | | ?# """ """ """ #?????# """" """" #???????????? | | ?# """ """ """ #?????# """" """" #???????????? | | ?# #?????# ????????????? | | ?# """ """ """ #?????##############???????????? | | ?# """ """ """ #??????????????????????????????? | | ?# """ """ """ #??????????????????????????????? | | ?# #??????????????????????????????? | | ?##################??????????????????????????????? | | ?????????????????????????????????????????????????? | | ?????????????????????????????????????????????????? | +----------------------------------------------------+ Best States ------------- Heat Dissipation 40 Energy Generation 18 Energy Capacity 310 Matter Stores 300 Matter Capacity 300 Sight Range 16 Robot Scan Range 16 Terrain Scan Range 14 Terrain Scan Density 10 ECM Strength 2 Armor Coverage 225 Power Shielding 66 Utility Shielding 66 Melee Speed Boost 20 Evasion (%) 64 Melee Accuracy 16 Recoil Reduction 2 Kinecelleration 40 Offensive Hacking 12 Item Schematics ----------------- Combat Drone Bay | -7/Data Miner | Free Lgt. Regenerative Plating | -7/Data Miner | Free Biomechanical Wings | -7/Data Miner | Free Thermal Defense Suite | -7/Data Miner | Free Imp. Heavy Laser | -7/Data Miner | Free Thunder Leg | -7/Data Miner | Free Point Defense System | -7/Data Miner | Free Mass Driver | -7/Data Miner | Free Imp. Actuator Array | -7/Data Miner | Free Antigrav System | -7/Data Miner | Free Imp. Coolant Injector | -7/Data Miner | Free Dispersion Rifle | -7/Data Miner | Free Adv. Actuator Array | -7/Data Miner | Free Robot Schematics ------------------ S-27 Virus | -7/Data Miner | Free B-48 Gladiator | -7/Data Miner | Free G-47 Trooper | -7/Data Miner | Free R-10 Processor | -7/Data Miner | Free E-15 Imp | -7/Data Miner | Free Fabricated ------------ Nothing Repaired ---------- Nothing Alien Tech Used ----------------- None Achievements -------------- None Challenges ------------ None Game ------ Seed IntegrityPropulsionReplica Manual? 0 Play Time 00:53:30 Cumulative 67.1 hours Start 2025.05.30 @ 18:38:03 End 2025.06.01 @ 23:56:47 Sessions 3 Manual Loads 0 Difficulty Rogue Special Mode None Game No. 94 Rogue 94 Adventurer 0 Explorer 0 Win Type - Total 1 Types 1/0/0/0/0/0/0/0/0/0 Lore% 32 Gallery% 39 Achievement% 37 Wizard Run 0 Options --------- Layout 1 ASCII 0 Keyboard 1 Movement Numpad Keybinds 0 Fullscreen 1 Font 32/Smallcaps Map View 50x35 Zoom Use 0% Tactical HUD 1 Map Filters NONE Filters NONE Steam 1 RUN: b935604a-b1d1-4327-b1a2-4e370f685a70